[Event "14th Chennai GM Open 2023"]
[Site "Chennai"]
[Date "2024.01.04"]
[Round "7.2"]
[White "Laxman, R.R."]
[Black "Aronyak Ghosh"]
[Result "1/2-1/2"]
[ECO "E11"]
[WhiteElo "2338"]
[BlackElo "2545"]
[Annotator "TA"]
[PlyCount "92"]
[EventDate "2023.12.31"]
[EventType "swiss"]
[EventCountry "IND"]
[SourceTitle "playchess.com"]
[Source "ChessBase"]
[SourceQuality "1"]
[TimeControl "5400+30"]

{[%evp 16,92,14,4,21,15,18,6,7,6,5,24,16,18,10,2,2,0,0,-8,-14,-36,-54,-52,-9,-25,-24,-27,-20,-24,-19,-76,-12,-18,0,-22,-4,-18,-14,-14,-12,-14,-14,-27,-40,-34,-20,-40,-14,-14,-11,-16,-41,-26,-17,-19,-18,-31,0,-21,-5,-35,-10,-11,-11,-18,-7,-32,-6,-4,-5,-7,-6,-7,0,-5,0,-8,0]} 1. d4 {[%emt 0:00:05]} Nf6 {[%emt 0:05:31]} 2. c4 {[%emt 0:00:11]} e6 {[%emt 0:01:57]} 3. g3 {[%emt 0:01:29]} Bb4+ {[%emt 0:01:26]} 4. Bd2 {[%emt 0:00:11]} Be7 {[%emt 0:01:02]} 5. Bg2 {[%emt 0:00:32]} d5 {[%emt 0:00:04]} 6. Nf3 {[%emt 0:00:19]} O-O {[%emt 0:00:14]} 7. Qc2 {[%emt 0:00:42]} c6 {[%emt 0:00:19]} 8. O-O {[%emt 0:00:17]} Nbd7 {[%emt 0:00:04]} 9. Rd1 {[%emt 0:08:37]} a5 {[%emt 0:06:29] E11: Bogo-Indian.} 10. b3 {[%emt 0:00:53]} b6 {[%emt 0:00:51][%cal Bb7b6,Bb6b5,Bb5c4][%mdl 32]} 11. Bc3 {[%emt 0:00:13]} Ba6 {[%emt 0:00:37]} 12. Nbd2 {[%emt 0:00:24]} b5 {[%emt 0:00:43]} 13. e4 {[%emt 0:00:51]} dxc4 {[%emt 0:00:06]} 14. bxc4 {[%emt 0:00:27]} bxc4 {[%emt 0:00:05]} 15. Ne5 {[%emt 0:01:15]} Nxe5 {[%emt 0:04:21]} 16. dxe5 {[%emt 0:00:02]} Nd7 {[%emt 0:00:33] [#]} 17. Bd4 $146 {[%emt 0:01:15]} ({Predecessor:} 17. Bf1 Qc7 18. f4 Nb6 19. Bd4 Rfd8 20. Be3 Bb5 21. Rdb1 Ba4 22. Qc1 c3 23. Nb3 Bb4 24. a3 c5 25. axb4 cxb4 26. Nxa5 Rd1 27. Nc4 Rxc1 {0-1 Bottema,T (2219)-Sethuraman,S (2543) Wijk Cultural Village 2011 (6)}) 17... Nb6 {[%emt 0:08:33]} 18. Bxb6 {[%emt 0:05:58]} Qxb6 {[%emt 0:00:09]} 19. Nxc4 {[%emt 0:00:06]} Qc5 {[%emt 0:06:36]} 20. Bf1 {[%emt 0:00:16]} (20. Rac1 $5 {[%cal Rc4d6]}) 20... Bxc4 {[%emt 0:08:39]} 21. Qxc4 {[%emt 0:00:12]} Qxe5 {[%emt 0:00:06]} 22. Qxc6 {[%emt 0:00:36]} Rac8 {[%emt 0:53:05][%cal Ba8c8,Bc8c7,Bc7a7,Ba7a3][%mdl 32]} 23. Qa4 {[%emt 0:01:18] [#]} (23. Qb5 $11 Qxb5 24. Bxb5) 23... g5 {[%emt 0:00:00]} (23... Bc5 $1 $17 24. Bg2 Qb2) 24. Rac1 {[%emt 0:03:42]} Bc5 {[%emt 0:00:00][%cal Oc5f2] Strongly threatening ...Bxf2+!} 25. Qb5 {[%emt 0:02:56]} (25. Qxa5 $2 Bxf2+ 26. Kxf2 Qxa5 $19) 25... Rc7 {[%emt 0:00:00]} 26. Qe2 {[%emt 0:03:01]} (26. Qxa5 $2 {too greedy.} Bxf2+ 27. Kxf2 Qxa5 $19) 26... Rb8 {[%emt 0:00:00] White is weak on the dark squares} 27. Rc4 {[%emt 0:03:14]} Rb4 {[%emt 0:00:00]} 28. Rxb4 {[%emt 0:04:37]} axb4 {[%emt 0:00:00]} 29. Qb5 {[%emt 0:01:08]} Kg7 {[%emt 0:00:00]} (29... h5 {feels hotter.} 30. Rd7 Qf6 31. Rd2 Kg7) 30. Qe2 {[%emt 0:00:22]} Ra7 {[%emt 0:00:00][%cal Oh7h5]} 31. Kg2 {[%emt 0:01:31]} h6 {[%emt 0:00:00]} 32. Rd2 {[%emt 0:01:08]} Ra3 {[%emt 0:00:00]} 33. Rd3 {[%emt 0:02:13]} (33. Qg4 {keeps more tension.} Qc3 34. Qe2 Bb6 35. h4) 33... Rc3 {[%emt 0:00:00]} (33... Rxd3 {simplifies} 34. Qxd3 Bb6 35. Qf3 Kf8) 34. Rd2 {[%emt 0:03:51]} Qf6 {[%emt 0:00:00]} 35. Qg4 {[%emt 0:01:57]} Rc1 {[%emt 0:00:00]} 36. Qe2 {[%emt 0:04:28]} Rc3 {[%emt 0:00:00]} 37. Qg4 {[%emt 0:00:25]} Kf8 {[%emt 0:00:00]} (37... Kg6 {seems wilder.} 38. h4 Kg7 39. Bb5 Rc1) 38. Qd1 {[%emt 0:01:41]} (38. Qh5 {is interesting.} Bd4 39. Bb5 Qe5 40. Be2) 38... Qe5 {[%emt 0:00:00]} (38... Qg6 $5 {[%cal Rg6e4]}) 39. Bd3 {[%emt 0:01:36]} Kg7 {[%emt 0:00:00]} 40. Qg4 {[%emt 0:01:39]} Bb6 {[%emt 0:00:00]} 41. Bf1 {[%emt 0:03:37]} h5 {[%emt 0:00:00][%mdl 64] [#] Deflection} 42. Qxh5 {[%emt 0:00:17] The position is equal.} Qxe4+ {[%emt 0:00:00]} 43. Kg1 {[%emt 0:00:02]} Qf5 {[%emt 0:00:00] White should prevent ...Rf3.} 44. Kg2 {[%emt 0:02:07] Wards off Rf3} Qe4+ {[%emt 0:00:00]} 45. Kg1 {[%emt 0:00:05]} Qf5 {[%emt 0:00:00] Threatening ...Rf3.} 46. Kg2 {[%emt 0:00:29] Dodges Rf3} Qe4+ {[%emt 0:00:06] Weighted Error Value: White=0.09 (flawless) /Black=0.10 (very precise)} 1/2-1/2

[Event "14th Chennai GM Open 2023"]
[Site "Chennai"]
[Date "2024.01.04"]
[Round "7.3"]
[White "Ratnakaran, K.."]
[Black "Savchenko, Boris"]
[Result "0-1"]
[ECO "B11"]
[WhiteElo "2256"]
[BlackElo "2489"]
[Annotator "TA"]
[PlyCount "104"]
[EventDate "2023.12.31"]
[EventType "swiss"]
[EventCountry "IND"]
[SourceTitle "playchess.com"]
[Source "ChessBase"]
[SourceQuality "1"]
[TimeControl "5400+30"]

{[%evp 9,104,22,20,3,20,13,38,23,26,-11,-5,-46,83,36,120,118,130,17,7,0,0,-30,-16,-27,-11,-103,-121,-127,-120,-121,-119,-151,-143,-168,-159,-231,-186,-365,-376,-365,-257,-256,-263,-249,-263,-263,-263,-260,-256,-252,-247,-298,-274,-328,-326,-284,-282,-378,-351,-400,-377,-503,-491,-491,-495,-508,-497,-495,-467,-545,-547,-903,-894,-895,-850,-680,-677,-670,-666,-658,-636,-966,-955,-908,-820,-1212,-1045,-1034,-1034,-1034,-1034,-1034,-1028,-1020,-997,-996,-992]} 1. e4 {[%emt 0:00:03]} c6 {[%emt 0:07:24]} 2. Nc3 {[%emt 0:00:26]} d5 {[%emt 0:00:07]} 3. Nf3 {[%emt 0:00:04]} Bg4 {[%emt 0:00:12]} 4. h3 {[%emt 0:00:04]} Bh5 {[%emt 0:00:05]} 5. d3 {[%emt 0:01:39]} e6 {[%emt 0:07:40]} 6. Bd2 {[%emt 0:00:22] [#] B11: Caro-Kann: Two Knights Variation.} Bc5 $146 {[%emt 0:04:55]} ({Predecessor:} 6... Nf6 7. g4 Bg6 8. Ne5 dxe4 9. Nxg6 hxg6 10. g5 Nd5 11. Nxe4 Ne7 12. Qg4 Nf5 13. h4 {0-1 Rehorek,M (2346)-Schebler,G (2496) Pardubice Czech op 2007 (2)}) 7. Qe2 {[%emt 0:00:36]} (7. g4 $5 Bg6 $8 8. Bg2 $14) 7... Ne7 {[%emt 0:06:05]} 8. g4 {[%emt 0:03:38] White is slightly better.} Bg6 {[%emt 0:00:23]} 9. h4 {[%emt 0:02:24] h5 would be deadly.} h5 $1 {[%emt 0:00:31]} 10. Ne5 {[%emt 0:00:46][%cal Bf3e5,Be5c4,Bc4d6][%mdl 32]} dxe4 {[%emt 0:07:29]} (10... d4 $15 {keeps the upper hand.} 11. Nd1 Bd6 12. Nxg6 Nxg6) 11. dxe4 {[%emt 0:05:21]} ({White should try} 11. Nxe4 $16 Bxe4 12. dxe4 (12. Qxe4 hxg4 13. Nxg4 f5 $15)) 11... hxg4 {[%emt 0:00:05] [#]} ({Black should play} 11... Bd6 $14 12. Nxg6 Nxg6) 12. O-O-O $1 $16 {[%emt 0:01:25]} Bh5 {[%emt 0:12:40]} 13. Be3 {[%emt 0:13:31] Prevents Bd4.} (13. Nxg4 $6 Nd7 $15) (13. Bh6 $16 Qc7 14. Bxg7 (14. Nxg4 $2 Rxh6 {[%mdl 64] Pin} 15. f3 Bxg4 $19)) 13... Bxe3+ $1 $11 {[%emt 0:10:42]} 14. Qxe3 {[%emt 0:01:03]} (14. fxe3 Qc7 15. Qd2 O-O $15) 14... Qc7 {[%emt 0:00:11]} 15. Nc4 {[%emt 0:02:56]} Nd7 $1 {[%emt 0:01:22]} 16. Nd6+ {[%emt 0:00:25]} Kf8 {[%emt 0:00:22]} 17. Be2 {[%emt 0:02:02] [#]} (17. Qg3 $11) 17... Ng6 $1 $17 {[%emt 0:03:48][%cal Be7g6,Bg6h4,Bh4f3,Bf3d2][%mdl 32] White is now going downhill.} 18. Rd2 {[%emt 0:09:46]} Nde5 {[%emt 0:03:52]} 19. a4 {[%emt 0:04:19]} b6 {[%emt 0:08:46]} 20. Na2 {[%emt 0:07:53]} Qe7 {[%emt 0:02:08]} (20... Rd8 21. Rhd1 Ra8 22. Nc4 $17) 21. Kb1 {[%emt 0:01:14]} Nxh4 {[%emt 0:08:13]} ({Inferior is} 21... Rd8 22. Rhd1 $15) 22. Qa3 {[%emt 0:07:03]} (22. Rdd1 $17) 22... Kg8 {[%emt 0:04:08]} 23. Ba6 $2 {[%emt 0:01:23]} (23. Qg3 {was necessary.} Nhg6 24. Nc4 Nxc4 25. Bxc4) 23... Nhf3 $19 {[%emt 0:01:37]} 24. Rdd1 {[%emt 0:00:23]} Bg6 {[%emt 0:03:41] White must now prevent ...Rxh1.} 25. Nc8 {[%emt 0:08:22] [#]} Nd2+ $1 {[%emt 0:00:17][%mdl 576] Double Attack} 26. Kc1 {[%emt 0:00:04]} Qxa3 {[%emt 0:00:13]} 27. bxa3 {[%emt 0:00:04] Strongly threatening Ne7+.} Rxh1 {[%emt 0:00:28]} (27... Nxe4 $2 28. Rd8#) 28. Rxh1 {[%emt 0:00:08] [#]} Rxc8 $1 {[%emt 0:02:36]} 29. Bxc8 {[%emt 0:00:04]} Nxe4 {[%emt 0:00:06]} 30. Rf1 {[%emt 0:00:38]} Nc5 {[%emt 0:01:33]} 31. Nb4 {[%emt 0:00:48]} a5 {[%emt 0:00:20]} (31... Nxa4 $2 {too greedy.} 32. Re1 Nf3 33. Re3 $19) 32. Na6 {[%emt 0:00:16]} Nxa4 {[%emt 0:00:26]} 33. Re1 {[%emt 0:01:16]} Nf3 {[%emt 0:01:07]} 34. Re3 {[%emt 0:03:26]} Nd4 {[%emt 0:00:22]} 35. c3 {[%emt 0:02:13]} Nb3+ {[%emt 0:00:26] Black is clearly winning.} 36. Kd1 {[%emt 0:00:04]} Nb2+ {[%emt 0:00:10]} 37. Ke1 {[%emt 0:00:25]} Nc4 {[%emt 0:00:54][%csl LRa3,LRe3]} 38. Rg3 {[%emt 0:00:22]} Nxa3 {[%emt 0:00:26]} 39. Rxg4 {[%emt 0:00:46]} Bh5 {[%emt 0:01:45]} 40. Rh4 {[%emt 0:04:33]} Nc2+ {[%emt 0:00:13]} 41. Kf1 {[%emt 0:00:04]} Nd2+ {[%emt 0:00:14]} 42. Kg2 {[%emt 0:00:03]} Bf3+ {[%emt 0:00:52]} 43. Kg3 {[%emt 0:00:05]} g5 {[%emt 0:01:50]} 44. Ra4 {[%emt 0:00:05]} Bd5 {[%emt 0:00:41]} 45. Nc7 {[%emt 0:00:50]} Bb3 {[%emt 0:00:27]} 46. Rg4 {[%emt 0:00:16]} Kf8 {[%emt 0:00:25] ...f5 is the strong threat.} 47. f4 {[%emt 0:04:44]} Ne3 {[%emt 0:00:59]} 48. Rxg5 {[%emt 0:00:16]} Ne4+ {[%emt 0:00:18]} 49. Kf3 {[%emt 0:00:04]} Nxg5+ {[%emt 0:00:07]} 50. Kxe3 {[%emt 0:00:11] [#]} a4 $1 {[%emt 0:00:30][%cal Oa4a3] And now ...a3! would win.} 51. Kd2 {[%emt 0:00:59]} Ne4+ {[%emt 0:00:12]} 52. Kc1 {[%emt 0:00:04]} Nxc3 {[%emt 0:00:24] A cool game by Savchenko.   Weighted Error Value: White=0.53/Black=0.15 (very precise)} 0-1

[Event "14th Chennai GM Open 2023"]
[Site "Chennai"]
[Date "2024.01.04"]
[Round "7.4"]
[White "Srihari L R"]
[Black "Sai Vishwesh.C"]
[Result "1-0"]
[ECO "A15"]
[WhiteElo "2467"]
[BlackElo "2228"]
[Annotator "TA"]
[PlyCount "127"]
[EventDate "2023.12.31"]
[EventType "swiss"]
[EventCountry "IND"]
[SourceTitle "playchess.com"]
[Source "ChessBase"]
[SourceQuality "1"]
[TimeControl "5400+30"]

{[%evp 10,127,-1,-6,6,0,14,22,71,76,71,68,85,73,84,83,96,28,36,29,29,28,33,37,39,14,20,22,33,8,27,11,6,15,11,14,10,6,22,8,35,54,55,25,51,38,51,51,51,51,71,26,75,75,95,81,82,20,20,14,12,15,75,75,75,0,28,33,75,75,99,99,99,99,237,239,12841,12841,12841,12840,12833,12833,12844,12844,12845,12845,12845,12846,12847,12847,12848,12848,12849,12849,12850,12850,12850,27999,27999,27999,27999,27999,27999,27999,27999,27999,27999,27999,27999,27999,27999,27999,27999,27999,27999,27999,27999,27999,27999,27999]} 1. c4 {[%emt 0:00:11]} Nf6 {[%emt 0:00:16]} 2. Nf3 {[%emt 0:00:48]} g6 {[%emt 0:00:09]} 3. b4 {[%emt 0:02:05]} Bg7 {[%emt 0:00:14]} 4. Bb2 {[%emt 0:00:07]} O-O {[%emt 0:01:32]} 5. e3 {[%emt 0:01:10]} d6 {[%emt 1:30:49]} 6. Be2 {[%emt 1:29:09]} c5 {[%emt 0:00:00] A15: English Opening: 1...Nf6.} 7. a3 {[%emt 0:00:00][%cal Ba2a3,Ba3b4,Bb4b5][%mdl 32]} Na6 {[%emt 0:00:00]} (7... Nc6 $5 {[%cal Rc5b4]}) 8. Qb3 {[%emt 0:00:00] [#]} cxb4 $146 {[%emt 0:00:00]} (8... e5 $11) ({Predecessor:} 8... Qb6 9. b5 Nc7 10. Nc3 Nce8 11. O-O Qc7 12. a4 b6 13. a5 bxa5 14. Ra3 d5 15. cxd5 {1-0 Marques,E-Pereira,C BRA-chT Curitiba 1984 (3)}) 9. axb4 $16 {[%emt 0:00:00]} Qb6 {[%emt 0:00:00]} 10. Bc3 {[%emt 0:00:00]} Ne4 {[%emt 0:00:00]} 11. Bxg7 {[%emt 0:00:00]} Kxg7 {[%emt 0:00:00]} 12. b5 {[%emt 0:00:00] Black must now prevent Qc2.} Nc7 {[%emt 0:00:00]} 13. d3 {[%emt 0:03:30]} (13. O-O $16) 13... Nf6 $11 {[%emt 0:00:00]} 14. Nc3 {[%emt 0:00:00]} a6 $1 {[%emt 0:00:00]} 15. O-O {[%emt 0:00:00]} Be6 {[%emt 0:00:00]} 16. Nd4 {[%emt 0:00:00]} axb5 {[%emt 0:00:00]} 17. Ncxb5 {[%emt 0:00:00]} Bd7 {[%emt 0:00:00]} 18. Nxc7 {[%emt 0:00:00]} Qxc7 {[%emt 0:00:00]} 19. Bf3 {[%emt 0:00:00]} Bc6 {[%emt 0:00:00]} (19... e5 {seems wilder.} 20. Nb5 Qb6 21. Qc3 Bxb5 22. Rfb1 Rxa1 23. Qxa1 Qa6) 20. h3 {[%emt 0:00:00]} e5 {[%emt 0:00:00]} 21. Nxc6 {[%emt 0:00:00]} bxc6 {[%emt 0:00:00]} 22. Rxa8 {[%emt 0:00:00]} Rxa8 {[%emt 0:00:00]} 23. Rb1 {[%emt 0:00:00]} Rd8 {[%emt 0:00:00]} 24. Qb6 {[%emt 0:00:00]} Qxb6 {[%emt 0:00:00]} 25. Rxb6 {[%emt 0:00:00][%mdl 4096] Endgame KRB-KRN} c5 {[%emt 0:00:00]} 26. Bc6 {[%emt 0:00:00]} Ng8 {[%emt 0:00:00]} 27. Rb7 {[%emt 0:00:00]} Kf6 {[%emt 0:00:00]} 28. g4 {[%emt 0:00:00] Hoping for Bd5.} h6 {[%emt 0:00:37]} 29. h4 {[%emt 0:00:00]} Ne7 {[%emt 0:03:20]} 30. Bd7 {[%emt 0:00:00]} g5 {[%emt 0:05:26]} (30... Ra8 $1 $11) 31. h5 $16 {[%emt 0:00:00]} Kg7 {[%emt 0:00:08]} 32. Kg2 {[%emt 0:00:00]} Kf8 {[%emt 0:00:35] [#]} 33. f4 {[%emt 0:00:00]} exf4 $11 {[%emt 0:01:58]} 34. exf4 {[%emt 0:00:00]} gxf4 {[%emt 0:00:01]} 35. Kf3 {[%emt 0:00:00]} Kg7 {[%emt 0:00:59]} (35... Ra8 $11 {remains equal.}) 36. Kxf4 $16 {[%emt 0:00:00]} Kf6 {[%emt 0:00:01]} 37. Bb5 {[%emt 0:01:08]} (37. Ra7 $1 $16) 37... Ke6 {[%emt 0:00:07]} 38. Ra7 {[%emt 0:02:23]} Kf6 {[%emt 0:01:10]} 39. Bd7 $1 {[%emt 0:01:09] White is more active.} Kg7 {[%emt 0:01:17] [#]} 40. g5 $1 {[%emt 0:01:17]} hxg5+ {[%emt 0:00:59]} 41. Kxg5 {[%emt 0:00:01] Threatens to win with h6+.} Rh8 {[%emt 0:00:33] Loses the game.} (41... Ng8 $16 {was necessary.}) 42. Be6 $1 $18 {[%emt 0:02:11][%mdl 64] Discovered Attack} Re8 {[%emt 0:00:39]} (42... f6+ 43. Kg4 Kf8) 43. h6+ {[%emt 0:00:08]} Kf8 {[%emt 0:00:06]} 44. h7 {[%emt 0:01:25]} Kg7 {[%emt 0:00:14] [#]} 45. h8=Q+ $1 {[%emt 0:00:27][%mdl 576] Deflection} Kxh8 {[%emt 0:00:01]} (45... Rxh8 46. Rxe7) 46. Bxf7 {[%emt 0:00:06]} Nc8 {[%emt 0:00:40]} 47. Bxe8 {[%emt 0:01:40]} Nxa7 {[%emt 0:00:00] KB-KN} 48. Kf6 {[%emt 0:00:08]} Kg8 {[%emt 0:00:54]} 49. Ke6 {[%emt 0:00:13]} Nc8 {[%emt 0:00:06]} 50. Bd7 {[%emt 0:00:08]} Nb6 {[%emt 0:00:02]} 51. Kxd6 {[%emt 0:00:05]} Kf8 {[%emt 0:00:03]} 52. Bc6 {[%emt 0:00:22]} Nc8+ {[%emt 0:00:03]} 53. Kxc5 {[%emt 0:00:04]} Ke7 {[%emt 0:00:02] White mates.} 54. Bg2 {[%emt 0:00:40]} Nd6 {[%emt 0:00:06]} 55. d4 {[%emt 0:01:02]} Nf5 {[%emt 0:00:01]} 56. Bh3 {[%emt 0:00:28]} Nd6 {[%emt 0:00:04]} 57. Kd5 {[%emt 0:00:10]} Nb7 {[%emt 0:00:06]} 58. c5 {[%emt 0:00:08][%cal Bc4c5,Bc5c6,Bc6c7][%mdl 32]} Kd8 {[%emt 0:00:05]} 59. c6 {[%emt 0:00:25]} Na5 {[%emt 0:00:01]} 60. Kd6 {[%emt 0:00:07]} Nc4+ {[%emt 0:00:02] [#]} 61. Kc5 $1 {[%emt 0:00:17]} Nd2 {[%emt 0:00:12]} 62. d5 {[%emt 0:00:26]} Ne4+ {[%emt 0:00:01]} 63. Kb6 {[%emt 0:00:09]} Nd6 {[%emt 0:00:03]} 64. c7+ {[%emt 0:00:06] Weighted Error Value: White=0.11 (very precise) /Black=0.16 (very precise)} 1-0

[Event "14th Chennai GM Open 2023"]
[Site "Chennai"]
[Date "2024.01.04"]
[Round "7.5"]
[White "Glek, Igor"]
[Black "Elgabry, Mohsen"]
[Result "1-0"]
[ECO "B08"]
[WhiteElo "2429"]
[BlackElo "2160"]
[Annotator "RC"]
[PlyCount "121"]
[EventDate "2023.12.31"]
[EventType "swiss"]
[EventCountry "IND"]
[SourceTitle "playchess.com"]
[Source "ChessBase"]
[SourceQuality "1"]
[TimeControl "5400+30"]

1. e4 {[%emt 0:03:07]} g6 {[%emt 0:00:18]} 2. d4 {[%emt 0:00:04]} Bg7 {[%emt 0:00:04]} 3. Nc3 {[%emt 0:00:23]} d6 {[%emt 0:00:07]} 4. Be3 {[%emt 0:06:26]} c6 {[%emt 0:00:20]} 5. a4 {[%emt 0:05:19]} Nf6 {[%emt 0:02:01]} 6. h3 {[%emt 0:01:02]} a5 {[%emt 0:00:33]} 7. Nf3 {[%emt 0:00:06]} O-O {[%emt 0:00:12]} 8. Be2 {[%emt 0:01:42]} Nbd7 {[%emt 0:03:49]} 9. O-O {[%emt 0:07:51]} e5 {[%emt 0:03:56]} 10. dxe5 {[%emt 0:07:00]} dxe5 {[%emt 0:00:10]} 11. Qb1 {[%emt 0:01:26]} Qe7 {[%emt 0:00:18]} 12. Qa2 {[%emt 0:00:53]} Nh5 {[%emt 0:06:30]} 13. Bc4 {[%emt 0:14:53]} h6 {[%emt 0:02:38]} 14. Rfd1 {[%emt 0:06:50]} Re8 {[%emt 0:06:14]} 15. Qa3 {[%emt 0:20:33]} Qxa3 {[%emt 0:00:46]} 16. Rxa3 {[%emt 0:00:01]} Bf8 {[%emt 0:00:33]} 17. Raa1 {[%emt 0:00:13]} Nc5 {[%emt 0:00:41]} 18. Nd2 {[%emt 0:04:12]} Nf4 {[%emt 0:00:54]} 19. h4 {[%emt 0:03:12]} Kg7 {[%emt 0:02:14]} 20. g3 {[%emt 0:00:41]} Nfe6 {[%emt 0:00:10]} 21. Nf3 {[%emt 0:05:17]} f6 {[%emt 0:03:47]} 22. Rd2 {[%emt 0:00:10]} Nc7 {[%emt 0:00:59]} 23. Kg2 {[%emt 0:02:55]} Be6 {[%emt 0:01:11]} 24. Bxc5 {[%emt 0:03:25]} Bxc5 {[%emt 0:00:08]} 25. Bxe6 {[%emt 0:00:03]} Nxe6 {[%emt 0:00:23]} 26. Rd7+ {[%emt 0:00:07]} Re7 {[%emt 0:00:06]} 27. Rad1 {[%emt 0:01:03]} Kf7 {[%emt 0:00:25]} 28. h5 {[%emt 0:00:24]} g5 {[%emt 0:01:06]} 29. Ne2 {[%emt 0:00:50]} g4 {[%emt 0:02:11]} 30. Nh4 {[%emt 0:01:16]} Ke8 {[%emt 0:02:51]} 31. Rxe7+ {[%emt 0:00:13]} Bxe7 {[%emt 0:00:22]} 32. Nf5 {[%emt 0:00:02]} Ng5 {[%emt 0:03:13]} 33. Nxh6 {[%emt 0:00:54]} Nxe4 {[%emt 0:00:18]} 34. Nxg4 {[%emt 0:00:05]} Nc5 {[%emt 0:00:09]} 35. Nc3 {[%emt 0:00:28]} Kf7 {[%emt 0:00:01]} 36. Nh6+ {[%emt 0:01:02]} Ke6 {[%emt 0:00:12]} 37. g4 {[%emt 0:00:01]} Rb8 {[%emt 0:02:38]} 38. Kf3 {[%emt 0:04:23]} Na6 {[%emt 0:00:41]} 39. Nf5 {[%emt 0:00:17]} Nb4 {[%emt 0:05:00]} 40. Rd2 {[%emt 0:00:19]} b5 {[%emt 0:06:48]} 41. axb5 {[%emt 0:00:02]} cxb5 {[%emt 0:00:01]} 42. Ne4 {[%emt 0:00:13]} Nc6 {[%emt 0:02:22]} 43. c3 {[%emt 0:00:30]} Bf8 {[%emt 0:02:29]} 44. Rd1 {[%emt 0:00:54]} b4 {[%emt 0:00:23]} 45. Ra1 {[%emt 0:01:31]} b3 {[%emt 0:01:18]} 46. Ne3 {[%emt 0:00:33]} Ra8 {[%emt 0:00:48]} 47. Ra4 {[%emt 0:00:02]} Bh6 {[%emt 0:00:43]} 48. Nc5+ {[%emt 0:00:38]} Kf7 {[%emt 0:00:30]} 49. Nc4 {[%emt 0:00:51]} Rb8 {[%emt 0:00:48]} 50. Nxa5 {[%emt 0:00:13]} e4+ {[%emt 0:01:15]} 51. Kxe4 {[%emt 0:00:44]} Ne5 {[%emt 0:01:28]} 52. Naxb3 {[%emt 0:00:35]} Nxg4 {[%emt 0:00:22]} 53. Kf5 {[%emt 0:00:14]} Nxf2 {[%emt 0:00:41]} 54. Ra7+ {[%emt 0:00:08]} Kg8 {[%emt 0:00:09]} 55. Nd7 {[%emt 0:00:38]} Rb5+ {[%emt 0:00:54]} 56. Nbc5 {[%emt 0:00:01]} Nd3 {[%emt 0:01:28]} 57. Kg6 {[%emt 0:00:22]} Nf4+ {[%emt 0:02:20]} 58. Kxh6 {[%emt 0:00:14]} Kf7 {[%emt 0:00:30]} 59. b4 {[%emt 0:00:26]} Ne2 {[%emt 0:00:32]} 60. Ne5+ {[%emt 0:00:28]} Ke8 {[%emt 0:00:18]} 61. Nc4 {[%emt 0:00:26]} 1-0

[Event "14th Chennai GM Open 2023"]
[Site "Chennai"]
[Date "2024.01.04"]
[Round "7.6"]
[White "Abhishek, Kelkar"]
[Black "Khusenkhojaev, Muhammad"]
[Result "1-0"]
[ECO "E60"]
[WhiteElo "2204"]
[BlackElo "2366"]
[Annotator "RC"]
[PlyCount "105"]
[EventDate "2023.12.31"]
[EventType "swiss"]
[EventCountry "IND"]
[SourceTitle "playchess.com"]
[Source "ChessBase"]
[SourceQuality "1"]
[TimeControl "5400+30"]

1. d4 {[%emt 0:05:56]} Nf6 {[%emt 0:00:21]} 2. c4 {[%emt 0:00:05]} g6 {[%emt 0:00:07]} 3. h4 {[%emt 0:00:07]} c6 {[%emt 0:00:20]} 4. h5 {[%emt 0:05:02]} Nxh5 {[%emt 0:01:07]} 5. e4 {[%emt 0:00:07]} d5 {[%emt 0:02:58]} 6. e5 {[%emt 0:06:17]} dxc4 {[%emt 0:00:18]} 7. Nc3 {[%emt 0:14:51]} Ng7 {[%emt 0:01:22]} 8. Nf3 {[%emt 0:01:46]} Nd7 {[%emt 0:01:07]} 9. Ng5 {[%emt 0:01:05]} h5 {[%emt 0:07:22]} 10. Qf3 {[%emt 0:20:39]} Nf5 {[%emt 0:00:11]} 11. e6 {[%emt 0:09:55]} fxe6 {[%emt 0:00:08]} 12. Bxc4 {[%emt 0:13:44]} Nf6 {[%emt 0:00:54]} 13. Bf4 {[%emt 0:00:17]} Bh6 {[%emt 0:15:01]} 14. O-O-O {[%emt 0:01:07]} Nd5 {[%emt 0:00:11]} 15. g3 {[%emt 0:09:36]} Nxf4 {[%emt 0:31:43]} 16. gxf4 {[%emt 0:00:06]} Bxg5 {[%emt 0:00:35]} 17. fxg5 {[%emt 0:00:03]} Bd7 {[%emt 0:03:14]} 18. Kb1 {[%emt 0:00:47]} Qa5 {[%emt 0:00:45]} 19. Ne4 {[%emt 0:00:32]} Nd6 {[%emt 0:00:38]} 20. Nxd6+ {[%emt 0:05:11]} exd6 {[%emt 0:00:05]} 21. d5 {[%emt 0:00:06]} cxd5 {[%emt 0:11:55]} 22. Qf6 {[%emt 0:00:28]} Rf8 {[%emt 0:00:19]} 23. Qxg6+ {[%emt 0:01:02]} Kd8 {[%emt 0:00:13]} 24. Bb3 {[%emt 0:01:28]} Qb4 {[%emt 0:00:49]} 25. Rxh5 {[%emt 0:00:47]} Kc7 {[%emt 0:07:19]} 26. Rh7 {[%emt 0:00:22]} Rad8 {[%emt 0:04:47]} 27. Qxe6 {[%emt 0:00:47]} Qb5 {[%emt 0:01:29]} 28. Qxd5 {[%emt 0:01:09]} Qxd5 {[%emt 0:00:35]} 29. Bxd5 {[%emt 0:00:06]} Kb6 {[%emt 0:01:24]} 30. Rf7 {[%emt 0:00:45]} Bf5+ {[%emt 0:00:40]} 31. Ka1 {[%emt 0:00:05]} Rb8 {[%emt 0:01:22]} 32. f4 {[%emt 0:00:31]} Bg6 {[%emt 0:00:18]} 33. Rd7 {[%emt 0:01:03]} Bh5 {[%emt 0:00:40]} 34. Rf1 {[%emt 0:00:42]} Kc5 {[%emt 0:00:58]} 35. Bb3 {[%emt 0:00:32]} Bg4 {[%emt 0:00:48]} 36. Rc1+ {[%emt 0:00:14]} Kb5 {[%emt 0:00:06]} 37. Rf7 {[%emt 0:00:10]} Bh5 {[%emt 0:00:16]} 38. Rxf8 {[%emt 0:01:01]} Rxf8 {[%emt 0:00:01]} 39. Rf1 {[%emt 0:00:22]} Kc5 {[%emt 0:00:08]} 40. f5 {[%emt 0:00:40]} d5 {[%emt 0:00:09]} 41. g6 {[%emt 0:00:30]} Kd6 {[%emt 0:00:09]} 42. g7 {[%emt 0:00:51]} Re8 {[%emt 0:00:06]} 43. f6 {[%emt 0:00:21]} Bf7 {[%emt 0:00:13]} 44. Kb1 {[%emt 0:00:18]} Rc8 {[%emt 0:01:15]} 45. Re1 {[%emt 0:00:38]} Rc7 {[%emt 0:00:43]} 46. a3 {[%emt 0:00:14]} b5 {[%emt 0:00:14]} 47. Re8 {[%emt 0:00:50]} Bg6+ {[%emt 0:00:10]} 48. Ka2 {[%emt 0:00:18]} Rc1 {[%emt 0:00:01]} 49. Bc2 {[%emt 0:00:44]} Bf7 {[%emt 0:00:36]} 50. Bg6 {[%emt 0:00:36]} Bxg6 {[%emt 0:00:22]} 51. g8=Q {[%emt 0:00:11]} Bb1+ {[%emt 0:00:02]} 52. Kb3 {[%emt 0:00:03]} Bc2+ {[%emt 0:00:05]} 53. Kb4 {[%emt 0:00:06]} 1-0